Cogmind - Beta 12 @@@ ROGUE MODE // 2023.12.22 @ 16:28:54 Player: AION Result: Destroyed by D-53 Grenadier with Mini Grenade Launcher Performance ------------- Evolutions (0) 0 Regions Visited (2) 400 Robots Destroyed (12) 60 Value Destroyed (195) 195 Prototype IDs (0) 0 Alien Tech Used (0) 0 Bonus (0) 0 TOTAL SCORE: 655 Bonus ------- None Cogmind --------- Core Integrity 0/250 Matter 300/300 Energy 100/100 System Corruption 8% Temperature Cool (0) Movement Core (50) Location -10/Mines Parts ------- > --- POWER (1) -------- (None) > --- PROPULSION (2) --- (None) > --- UTILITY (2) ------ (None) > --- WEAPON (2) ------- (None) > --- INVENTORY (5) ---- Ion Engine Light Ion Engine Aluminum Leg Experimental Sensor Array Signal Interpreter Peak State ------------ > --- POWER ------------ Light Ion Engine > --- PROPULSION ------- Aluminum Leg Aluminum Leg > --- UTILITY ---------- Small Storage Unit Medium Matter Pod > --- WEAPON ----------- Grenade Launcher Grenade Launcher > --- INVENTORY -------- Ion Engine Light Ion Engine Aluminum Leg Experimental Sensor Array Signal Interpreter ECM Suite Light Assault Rifle Datajack [Rating: 8] Favorites ----------- Power Light Ion Engine Engine Light Ion Engine Propulsion Aluminum Leg Leg Aluminum Leg Utility Small Storage Unit Storage Small Storage Unit Weapon Grenade Launcher Ballistic Gun Light Assault Rifle Launcher Grenade Launcher Build | -11 -10 -10 ------- Run | Jun Mat Min Slots Evolved . | . . . Power . | . . . Propulsion . | . . . Utility . | . . . Weapon . | . . . Parts Attached 11 | 6 3 2 Power 2 | 1 . 1 Engine 2 | 1 . 1 Core . | . . . Reactor . | . . . Propulsion 2 | 2 . . Treads . | . . . Leg 2 | 2 . . Wheel . | . . . Hover . | . . . Flight . | . . . Utility 2 | 1 1 . Device . | . . . Storage 2 | 1 1 . Processor . | . . . Hackware . | . . . Protection . | . . . Artifact . | . . . Weapon 5 | 2 2 1 Energy Gun . | . . . Energy Cannon . | . . . Ballistic Gun 3 | 2 . 1 Ballistic Cannon . | . . . Launcher 2 | . 2 . Special Weapon . | . . . Impact Weapon . | . . . Slashing Weapon . | . . . Piercing Weapon . | . . . Special Melee Weapon . | . . . Unidentified Prototypes . | . . . Parts Lost 7 | . . 7 Power 1 | . . 1 Propulsion 2 | . . 2 Utility 2 | . . 2 Weapon 2 | . . 2 Highest Loss Streak 7 | . . 7 To Critical Strikes . | . . . Average Slot Usage (%) 95 | . 99 85 Engine 12 | . 14 10 Leg 27 | . 28 26 Storage 26 | . 27 24 Ballistic Gun 5 | . 7 . Launcher 20 | . 20 21 Naked Turns 2 | . . 2 Heaviest Build 16 | 10 16 16 Greatest Support 20 | 20 20 20 Greatest Overweight (x) 1 | . . 1 Average Overweight (x) . | . . . Largest Inventory Capacity 8 | 8 8 8 Average Capacity 7 | 7 8 7 Most Carried 8 | 6 8 8 Average Carried 6 | 2 6 7 Final Capacity 8 | 8 8 5 Final Carried 8 | 2 8 5 Class Distribution -------------------- 100% | Mutant Dominant Class ---------------- Mutant | -10/Materials Mutant | -10/Mines Resources | -11 -10 -10 ----------- Run | Jun Mat Min Matter Collected 469 | 218 231 20 Remotely . | . . . Salvage Created 157 | . 131 26 Parts 21 | . 21 . Haulers Intercepted . | . . . Recyclers Shooed . | . . . Parts Field Recycled . | . . . Retrieved Matter . | . . . Parts Self-Destructed . | . . . Prevented . | . . . Kills | -11 -10 -10 ------- Run | Jun Mat Min Combat Hostiles Destroyed 15 | . 8 7 Guns 1 | . . 1 AOE 14 | . 8 6 Classes Destroyed 5 | . 4 1 Worker 2 | . 2 . Watcher 2 | . 2 . Swarmer 6 | . 6 . Grunt 2 | . 2 . Assembled 7 | . . 7 Best Kill Streak 6 | . 4 6 Combat Bots Only 6 | . 3 6 Max Kills in Single Turn 5 | . 4 5 Gunslinging . | . . . Exploded 5 | . 3 5 Melee . | . . . Uniques/NPCs Destroyed . | . . . Combat | -11 -10 -10 -------- Run | Jun Mat Min Damage Taken 810 | . 111 699 Core 269 | . 54 215 Absorbed by Shields . | . . . Core Remaining (%) 100 | 100 . . Volleys Fired 16 | . 7 9 Largest 2 | . 2 2 Hottest 60 | . 60 60 Shots Fired 27 | . 14 13 Gun 7 | . 2 5 Cannon . | . . . Launcher 20 | . 12 8 Special . | . . . Kinetic 7 | . 2 5 Thermal . | . . . Explosive 20 | . 12 8 Electromagnetic . | . . . Robot Hit Streak 2 | . 2 2 Robot Miss Streak 2 | . 1 2 Penetration Max . | . . . Secondary Targets . | . . . Shots Hit Robots 7 | . 3 4 Core Hits 32 | . 16 16 Critical Kills . | . . . Critical Parts Destroyed . | . . . Critical Strikes . | . . . Melee Attacks . | . . . Impact . | . . . Slashing . | . . . Piercing . | . . . Sneak Attacks . | . . . Combat Hostiles . | . . . Follow-up Attacks . | . . . Damage Inflicted 1145 | . 579 566 Guns 24 | . . 24 Cannons . | . . . Explosions 1110 | . 579 531 Melee . | . . . Ramming 11 | . . 11 Kinetic 24 | . . 24 Thermal . | . . . Explosive 1110 | . 579 531 Electromagnetic . | . . . Impact . | . . . Slashing . | . . . Piercing . | . . . Highest Corruption 8 | . . 8 Average Corruption 7 | . . 7 Corruption Purged . | . . . Corruption Blocked . | . . . Effects 1 | . . 1 Parts Rejected 1 | . . 1 Overload Shots . | . . . Overflow Damage 19 | . 18 1 Projectiles . | . . . Explosions 19 | . 18 1 Melee . | . . . Knockbacks . | . . . Impact . | . . . Kinetic . | . . . Secondary . | . . . Self-Inflicted Damage 123 | . 76 47 Shots 4 | . 2 2 Rammed . | . . . Targets Rammed 5 | . . 5 Kicked 5 | . . 5 Crushed . | . . . Highest Temperature 10 | . 10 . Average Temperature 7 | . 7 . Received Heat Transfer 18 | . 9 9 Siege Activations . | . . . Robots Corrupted . | . . . Combat Hostiles . | . . . Parts Fried . | . . . Impact Corruptions . | . . . Robots Melted . | . . . Combat Hostiles . | . . . Parts Melted . | . . . Heat Transferred . | . . . Parts Sabotaged . | . . . Parts Stolen . | . . . Parts Stripped . | . . . Power Chain Reactions . | . . . Missiles Intercepted . | . . . Alert | -11 -10 -10 ------- Run | Jun Mat Min Peak Influence 184 | . 184 69 Initial 32 | . . 32 Average 52 | . 66 32 Maximum Alert Level . | . . . Low Security (%) 100 | 100 100 100 Level 1 . | . . . Level 2 . | . . . Level 3 . | . . . Level 4 . | . . . Level 5 . | . . . High Security . | . . . Max Security . | . . . Squads Dispatched 2 | . 2 . Investigation . | . . . Extermination . | . . . Reinforcement 2 | . 2 . Assault . | . . . Garrison . | . . . Intercept . | . . . Searches Triggered . | . . . Construction Impeded . | . . . Haulers Reinforced . | . . . Active Scanning Responses . | . . . Cargo Convoy Interrupts . | . . . Stealth | -11 -10 -10 --------- Run | Jun Mat Min Distress Signals . | . . . Communications Jammed . | . . . Distress Signals . | . . . Times Spotted 36 | . 13 23 Peak Tracking Total 11 | . 4 11 Tactical Retreats . | . . . Traps | -11 -10 -10 ------- Run | Jun Mat Min Traps Triggered . | . . . Indirectly . | . . . Trap Hack Attempts . | . . . Triggered . | . . . Disarmed . | . . . Reprogrammed . | . . . Reused . | . . . Traps Extracted . | . . . Installed . | . . . Triggered . | . . . Machines | -11 -10 -10 ---------- Run | Jun Mat Min Machines Disabled 4 | . 4 . Max in Single Turn 2 | . 2 . Machines Repaired . | . . . Machines Sabotaged . | . . . Overloaded Fab Kills . | . . . Hacking | -11 -10 -10 --------- Run | Jun Mat Min Machines Accessed 4 | . 4 . Terminals 3 | . 3 . Fabricators . | . . . Repair Stations . | . . . Recycling Units 1 | . 1 . Scanalyzers . | . . . Garrison Access . | . . . Total Hacks 11 | . 11 . Successful 5 | . 5 . Failed 6 | . 6 . Catastrophic 2 | . 2 . Database Lockouts . | . . . Manual . | . . . Terminals 10 | . 10 . Fabricators . | . . . Repair Stations . | . . . Recycling Units 1 | . 1 . Scanalyzers . | . . . Garrison Access . | . . . Terminal Hacks 4 | . 4 . Alert Level 1 | . 1 . Unreport Threat 1 | . 1 . Security Status 1 | . 1 . Recall Investigation 1 | . 1 . Fabricator Hacks . | . . . Repair Station Hacks . | . . . Recycling Unit Hacks 1 | . 1 . Retrieve Components 1 | . 1 . Scanalyzer . | . . . Garrison Access Hacks . | . . . Unauthorized Hacks . | . . . Terminals . | . . . Fabricators . | . . . Repair Stations . | . . . Recycling Units . | . . . Scanalyzers . | . . . Garrison Access . | . . . Data Cores Recovered . | . . . Used . | . . . Hacking Detections 1 | . 1 . Full Trace Events . | . . . Feedback Events . | . . . Feedback Blocked . | . . . Robot Schematics Acquired . | . . . Robots Built . | . . . Authchips . | . . . Time . | . . . Total Robot Build Rating . | . . . Part Schematics Acquired . | . . . Parts Built . | . . . Authchips . | . . . Time . | . . . Total Part Build Rating . | . . . Parts Repaired . | . . . Time . | . . . Parts Recycled . | . . . Recycled Matter . | . . . Retrieved Matter . | . . . Retrieved Components 5 | . 5 . Parts Scanalyzed . | . . . Part Schematics Acquired . | . . . Parts Damaged . | . . . Bothacking | -11 -10 -10 ------------ Run | Jun Mat Min Used RIF Installer . | . . . Robots Hacked . | . . . Non-combat . | . . . Combat . | . . . Robot Hacks Applied . | . . . Relay Couplers Released . | . . . Fabnet Peak Effective % . | . . . Robots Rewired . | . . . Allies Hacked . | . . . Hacks Repelled . | . . . Allies | -11 -10 -10 -------- Run | Jun Mat Min Total Allies . | . . . Largest Group . | . . . Highest-Rated Group . | . . . Highest-Rated Ally . | . . . Total Orders . | . . . Ally Attacks . | . . . Total Damage . | . . . Kills . | . . . Allies Corrupted . | . . . Allies Melted . | . . . Intel | -11 -10 -10 ------- Run | Jun Mat Min Robot Analysis Total . | . . . Derelict Logs Recovered 1 | . . 1 Drone Launches . | . . . Drone Recoveries . | . . . Exploration | -11 -10 -10 ------------- Run | Jun Mat Min Turns Passed 696 | 55 461 180 Spaces Moved 518 | 36 356 126 Core 9 | 2 . 7 Treads . | . . . Legs 509 | 34 356 119 Wheels . | . . . Hover . | . . . Flight . | . . . Fastest Speed 50 | 50 120 50 Average Speed 119 | 116 120 117 Slowest Speed 120 | 120 120 120 Overloaded Moves . | . . . Propulsion Burnouts . | . . . Robots Hopped . | . . . Cave-ins Triggered . | . . . Exploration Rate (%) 39 | 3 84 30 Regions Visited 2 Branch Regions 1 Pre-discovered Areas 1 | . . 1 Known Exits Taken . | . . . Unknown Exits Taken 2 | 1 1 . Scrap Searched 1 | . . 1 Spaces Dug 10 | . 10 . Terrain Destroyed 115 | . 63 52 Melee . | . . . Projectile . | . . . AOE 115 | . 63 52 Terrain Rammed . | . . . Walls Destroyed . | . . . Machines Disabled . | . . . Actions | -11 -10 -10 --------- Run | Jun Mat Min Total 570 | 49 376 145 Wait . | . . . Move 516 | 35 355 126 Hop . | . . . Pick Up 18 | 8 9 1 Fast Attach 1 | . . 1 Attach 8 | 6 1 1 Detach . | . . . Swap 2 | . 2 . Drop 4 | . 2 2 Fire 16 | . 7 9 Melee . | . . . Ram . | . . . Kick 5 | . . 5 Crush . | . . . Escape Stasis . | . . . Rewire . | . . . Trap . | . . . Miscellaneous . | . . . Route ------- -11/Junkyard -10/Materials (discovered 3 exits: [*Mat x2] / [*Min]) -10/Mines History --------- Turn | Location | Event 12 | -11/Junkyard | Discovered new exit (range 16) 56 | -11/Junkyard | Entered Materials 225 | -10/Materials | Discovered new exit (range 12) 305 | -10/Materials | Build established: Mutant 308 | -10/Materials | Discovered new exit (range 8) 353 | -10/Materials | Discovered new exit (range 13) 517 | -10/Materials | Entered Mines 529 | -10/Mines | Learned location of Storage (-7) 627 | -10/Mines | Found a damaged Exp. Sensor Array with a note attached 628 | -10/Mines | Assembled infested the area 633 | -10/Mines | Found Prototype Device 694 | -10/Mines | Core integrity fell below 50% 696 | -10/Mines | Core integrity fell below 20% 697 | -10/Mines | Destroyed by D-53 Grenadier with Mini Grenade Launcher Last Messages --------------- 00667_ K-01 Serf destroyed. 00667_ R-06 Scavenger collects Wheel. 00670_ as-99145 sneak attacks. 00670_ R-06 Scavenger destroyed. 00672_ as-74092 sneak attacks. 00672_ T-07 Excavator system corrupted by crushing effect. 00672_ T-07 Excavator destroyed. 00675_ Aluminum Leg destroyed. 00682_ as-74092 destroyed. 00684_ as-06700 destroyed. 00684_ G-47 Trooper destroyed. 00690_ U-05 Engineer builds a Wall. 00691_ Aluminum Leg destroyed. 00692_ System corrupted: Lgt. Assault Rifle rejected. 00694_ U-05 Engineer lays Concrete. 00695_ as-55346 destroyed. 00695_ Sml. Storage Unit destroyed. 00695_ U-05 Engineer destroyed. 00695_ R-06 Scavenger collects Aluminum Leg. 00696_ Acquired 7 matter. Map ----- +----------------------------------------------------+ | ?????????????????# #???????# #???? | | ?????????????????# #???????# #???? | | ??????????????????# #???????# #???? | | ?????????????????## ######### #???? | | ??????????????#### # #???# | | ??????????##### ##### #########???# | | ?????????## ##???# #???????????? | | ???????### ##? ??# #???????????? | | ???????# % ?# #???????????? | | ??????# ## ### ##??????????? | | ?????# ??## [ #??????????? | | ???? ????## ! ##### #????????? | | ?? ????##? ??????## #????????? | | ??? ?????? # ###?????? #????????? | | ??????????# #???????#????????? | | ??????????# #?????????????????? | | ??????????## d ???????????????????? | | ?????????### d##???????????????????? | | ?????????# !%%#???????????????????? | | ?????????# [ #???????????????????? | | ?????????# % ##??????????????????? | | ?????????# ! #??????????????????? | | ?????????## #??????????????????? | | ??????????## [* #???????????????????? | | ???????????# %== #???????????????????? | | ???????????# @% #???????????????????? | | ???????????## #???????????????????? | | ????????????# r###???????????????????? | | ????????????# #?????????????????????? | | ???????????? ?????????????????????? | | ???????????? s ?????????????????????? | | ???????????? s ????????????????????? | | ???????????? ????????????????????? | | ???????????? ???????????????????? | | ???????????? ???????????????????? | | ??????????? s ??????????????????? | | ??????????? ??????????????????? | | ??????????? ?????????????????? | | ??????????? ?????????????????? | | ??????????? ???????????????????? | | ???????????" ?????????????????????? | | ?????????????????????????????????????? | | ?????????????????????????????????????? | | ?????????????????????????????????????? | | ?????????????????????????????????????? | | ?????????????????????????????????????? | | ?????????????????????????????????????? | | ?????????????????????????????????????? | | ?????????????????????????????????????? | | ?????????????????????????????????????? | +----------------------------------------------------+ Best States ------------- Heat Dissipation 25 Energy Generation 10 Energy Capacity 125 Matter Stores 400 Matter Capacity 400 Sight Range 16 Terrain Scan Density 10 Evasion (%) 55 Item Schematics ----------------- None Robot Schematics ------------------ None Fabricated ------------ Nothing Alien Tech Used ----------------- None Achievements -------------- Quick And Dirty Challenges ------------ None Game ------ Seed EnergySuspensionRailgun Manual? 0 Play Time 00:15:39 Cumulative 16.9 hours Start 2023.12.22 @ 16:14:40 End 2023.12.22 @ 16:28:54 Sessions 1 Manual Loads 0 Difficulty Rogue Special Mode None Game No. 14 Rogue 9 Adventurer 0 Explorer 5 Win Type - Total 1 Types 1/0/0/0/0/0/0/0/0 Lore% 10 Gallery% 22 Achievement% 21 Wizard Run 0 Options --------- ASCII 0 Keyboard 0 Movement Mouse Keybinds 0 Fullscreen 1 Font 24/Smallcaps Map View 76x56 Tactical HUD 1 Map Filters NONE Filters NONE Steam 1 RUN: 3403ee56-dea2-448b-bf13-f71e85d7df2c